bitfinex/quotes_BTCUSD_20230831
["timestamp","ask_amount","ask_price","bid_price","bid_amount"]
[1693507277876,0.11442206,26334.0,26333.0,2.07806411]
[1693507278084,0.11442206,26334.0,26333.0,2.07794411]
[1693507278285,0.11442206,26334.0,26333.0,2.07620411]
[1693507278502,0.11442206,26334.0,26333.0,3.17158298]
[1693507278801,0.11442206,26334.0,26333.0,3.17308298]
[1693507279074,0.11442206,26334.0,26333.0,3.17206298]
[1693507279267,0.11442206,26334.0,26333.0,2.01298898]
[1693507279504,0.11442206,26334.0,26333.0,1.52014898]
[1693507279628,1.15201735,26334.0,26333.0,1.15246813]
[1693507280002,1.72162235,26334.0,26333.0,0.05732926]
[1693507280273,1.15201735,26334.0,26333.0,0.05732926]
[1693507281585,2.2109167,26334.0,26333.0,0.05732926]
[1693507282293,2.44608671,26334.0,26333.0,0.05132926]
[1693507282721,2.44908671,26334.0,26333.0,0.05132926]
[1693507283154,2.44608671,26334.0,26333.0,0.05132926]
[1693507283355,2.44608671,26334.0,26333.0,0.04832926]
[1693507283556,2.44908671,26334.0,26333.0,0.04832926]
[1693507283766,2.45808671,26334.0,26333.0,0.04832926]
[1693507283969,2.2139167,26334.0,26329.0,0.38980209]
[1693507284147,0.11442206,26330.0,26329.0,0.39022209]
[1693507284350,0.11442206,26330.0,26329.0,1.50375258]
[1693507284576,0.11442206,26330.0,26329.0,1.50307049]
[1693507284785,0.11442206,26330.0,26329.0,1.50355049]
[1693507284786,0.10942206,26330.0,26329.0,1.50355049]
[1693507284961,0.10942206,26330.0,26329.0,1.50409049]
[1693507285121,0.10942206,26330.0,26329.0,1.50559049]
[1693507285312,0.11042206,26330.0,26329.0,1.54307049]
[1693507285546,0.11042206,26330.0,26329.0,1.54415049]
[1693507285752,0.11042206,26330.0,26329.0,1.54289049]
[1693507285975,0.11042206,26330.0,26329.0,1.57995049]
[1693507286181,0.11042206,26330.0,26329.0,1.58109049]
[1693507286575,0.11042206,26330.0,26329.0,1.61032792]
[1693507286799,0.4157527,26330.0,26329.0,1.23586792]
[1693507286999,0.4157527,26330.0,26329.0,1.21586792]
[1693507287442,0.4157527,26330.0,26329.0,0.12059743]
[1693507287755,1.16676619,26330.0,26329.0,0.12059743]
[1693507287953,0.86043555,26330.0,26329.0,0.08359743]
[1693507288187,0.99233187,26330.0,26329.0,0.08359743]
[1693507288383,0.99333187,26330.0,26329.0,0.11359743]
[1693507288586,0.99333187,26330.0,26329.0,0.04659743]
[1693507288587,0.99233187,26330.0,26329.0,0.04659743]
[1693507289018,0.99233187,26330.0,26329.0,0.05059743]
[1693507289251,0.99233187,26330.0,26329.0,0.036]
[1693507289671,0.99233187,26330.0,26329.0,0.004]
[1693507289875,1.36430606,26330.0,26329.0,0.01]
[1693507290285,1.36430606,26330.0,26329.0,0.006]
[1693507290466,1.36430606,26330.0,26329.0,0.01]
[1693507290467,1.68074028,26330.0,26329.0,0.01]
[1693507290672,1.36430606,26330.0,26329.0,0.01]
[1693507290882,1.36430606,26330.0,26329.0,0.006]
[1693507291087,1.64059671,26330.0,26329.0,0.006]
[1693507291265,1.37230606,26330.0,26329.0,0.006]
[1693507291465,1.36730606,26330.0,26329.0,0.006]
[1693507291785,2.17837893,26330.0,26329.0,0.006]
[1693507291961,2.17837893,26330.0,26329.0,0.00636877]
[1693507291962,2.11837893,26330.0,26329.0,0.00636877]
[1693507292167,2.17837893,26330.0,26329.0,0.00036877]
[1693507292427,2.18437893,26330.0,26329.0,0.00036877]
[1693507292630,2.18437893,26330.0,26329.0,0.0469662]
[1693507292967,2.17837893,26330.0,26329.0,0.0469662]
[1693507293361,2.50764723,26330.0,26329.0,0.0469662]
[1693507293564,2.52964723,26330.0,26329.0,0.0489662]
[1693507293711,2.19737893,26330.0,26329.0,0.0509662]
[1693507293911,2.19737893,26330.0,26329.0,0.05059743]
[1693507294117,0.20442206,26325.0,26324.0,0.00098309]
[1693507294331,2.82050293,26325.0,26324.0,0.00098309]
[1693507294569,0.10442206,26321.0,26320.0,0.020301]
[1693507294763,0.78980906,26321.0,26320.0,0.020301]
[1693507294964,1.08034793,26321.0,26320.0,0.02067518]
[1693507295164,1.08034793,26321.0,26320.0,0.07579871]
[1693507295387,0.21492206,26321.0,26320.0,0.07579871]
[1693507296311,1.06347627,26321.0,26320.0,0.09679871]
[1693507296872,1.06447627,26321.0,26320.0,0.10979871]
[1693507300278,1.3110493,26321.0,26320.0,0.10979871]
[1693507300517,1.8809363,26321.0,26320.0,0.10979871]
[1693507301336,2.81733694,26321.0,26320.0,0.10979871]
[1693507301549,3.11733694,26321.0,26320.0,0.10979871]
[1693507301755,3.11733694,26321.0,26320.0,0.05467518]
[1693507301935,3.29912936,26321.0,26320.0,0.054301]
[1693507302179,3.29712936,26321.0,26320.0,0.033301]
[1693507302381,2.99983694,26321.0,26320.0,0.033301]
[1693507302672,3.03583694,26321.0,26320.0,0.023301]
[1693507302893,3.03583694,26321.0,26314.0,0.01157562]
[1693507302894,0.22942206,26315.0,26314.0,0.01157562]
[1693507303106,2.62499006,26315.0,26314.0,0.01157562]
[1693507303307,2.63499006,26315.0,26314.0,0.01157562]
[1693507303736,0.25942206,26314.0,26313.0,0.0019846]
[1693507303940,2.45271691,26314.0,26313.0,0.0019846]
[1693507304174,2.08503606,26314.0,26313.0,0.0019846]
[1693507304402,2.38730945,26314.0,26313.0,0.0019846]
[1693507304578,2.38760945,26314.0,26313.0,0.0019846]
[1693507304829,2.08533606,26314.0,26313.0,0.0019846]
[1693507305429,2.31692239,26314.0,26313.0,0.0019846]
[1693507305675,2.35392239,26314.0,26313.0,0.0049846]
[1693507305886,2.39092239,26314.0,26313.0,0.0079846]
[1693507306087,2.35392239,26314.0,26313.0,0.0049846]
[1693507306299,2.83505033,26314.0,26313.0,0.0049846]
[1693507306956,2.87205033,26314.0,26313.0,0.0079846]
[1693507308217,2.54312639,26314.0,26313.0,0.0079846]
[1693507313496,2.39092239,26314.0,26313.0,0.0079846]
[1693507313643,0.82346006,26314.0,26313.0,0.06112402]
[1693507313866,1.39349806,26314.0,26313.0,0.06145511]
[1693507315294,1.33349806,26314.0,26313.0,0.06145511]
[1693507315493,0.19342206,26314.0,26313.0,0.06145511]
[1693507315699,0.570028,26315.0,26314.0,0.28605708]
[1693507315929,1.140055,26315.0,26314.0,0.28605708]
[1693507316173,2.13051092,26315.0,26314.0,0.28605708]
[1693507316404,1.825882,26315.0,26314.0,0.28605708]
[1693507316814,1.825882,26315.0,26314.0,0.33918631]
[1693507316960,1.845882,26315.0,26314.0,0.34251687]
[1693507317474,1.845882,26315.0,26314.0,0.34551687]
[1693507317475,1.852882,26315.0,26314.0,0.34551687]
[1693507320114,0.027,26315.0,26314.0,0.34551687]
[1693507320290,0.027,26315.0,26314.0,0.71319772]
[1693507320497,0.027,26315.0,26314.0,0.81521772]
[1693507320692,0.02,26315.0,26314.0,0.80375772]
[1693507321072,0.026,26315.0,26314.0,0.80477772]
[1693507321276,0.026,26315.0,26314.0,0.81161772]
[1693507321483,0.026,26315.0,26314.0,0.82507772]
[1693507321780,0.006,26315.0,26314.0,0.82165772]
[1693507321984,0.019,26315.0,26314.0,0.82417772]
[1693507322193,1.139923,26318.0,26314.0,0.81991772]
[1693507322402,1.139923,26318.0,26315.0,0.36768085]
[1693507322763,1.139923,26318.0,26315.0,0.38768085]
[1693507322964,1.139923,26318.0,26316.0,0.00032951]
[1693507323562,1.158923,26318.0,26316.0,0.00032951]
[1693507324344,1.164923,26318.0,26316.0,0.00332951]
[1693507324905,1.145923,26318.0,26316.0,0.00332951]
[1693507325082,1.164923,26318.0,26316.0,0.00632951]
[1693507329651,0.7052824,26317.0,26316.0,0.00632951]
[1693507329896,2.8172734,26317.0,26316.0,0.006]
[1693507330331,2.5152014,26317.0,26316.0,0.003]
[1693507330528,2.81453509,26317.0,26316.0,0.003]
[1693507330729,2.82053509,26317.0,26316.0,0.006]
[1693507330947,3.18832413,26317.0,26316.0,0.003]
[1693507331148,3.20732413,26317.0,26316.0,0.006]
[1693507331389,3.0617767,26317.0,26316.0,0.006]
[1693507331698,3.3617767,26317.0,26316.0,0.006]
[1693507332039,3.7604767,26317.0,26316.0,0.006]
[1693507332500,0.08,26314.0,26313.0,0.0019846]
[1693507332709,3.5954724,26314.0,26313.0,0.0019846]
[1693507332919,3.96326144,26314.0,26313.0,0.0019846]
[1693507333703,4.02326144,26314.0,26313.0,0.0019846]
[1693507334285,4.17606144,26314.0,26313.0,0.0049846]
[1693507334485,4.2140477,26314.0,26313.0,0.0049846]
[1693507334991,4.25090522,26314.0,26313.0,0.0079846]
[1693507335659,4.21390522,26314.0,26313.0,0.0049846]
[1693507336102,4.24990522,26314.0,26313.0,0.0069846]
[1693507336292,4.17690522,26314.0,26313.0,0.0019846]
[1693507336502,4.17690522,26314.0,26313.0,0.0049846]
[1693507336503,4.47805942,26314.0,26313.0,0.0049846]
[1693507336909,4.44205942,26314.0,26313.0,0.0019846]
[1693507337052,4.17690522,26314.0,26313.0,0.0019846]
[1693507337249,3.84511618,26314.0,26313.0,0.0049846]
[1693507337499,3.88111618,26314.0,26313.0,0.0069846]
[1693507338138,0.04,26306.0,26304.0,0.0212899]
[1693507338301,0.04,26306.0,26298.0,0.01045926]
[1693507338302,0.9,26304.0,26298.0,0.01045926]
[1693507338469,0.9,26304.0,26295.0,0.011105]
[1693507338470,0.01985752,26297.0,26295.0,0.011105]
[1693507338675,2.3207664,26296.0,26295.0,0.02234732]
[1693507338877,3.13125679,26296.0,26295.0,0.02234732]
[1693507339126,2.281712,26296.0,26295.0,0.02234732]
[1693507339345,1.20033939,26299.0,26298.0,0.00014248]
[1693507339546,1.20033939,26299.0,26298.0,0.51489567]
[1693507339547,0.15973639,26299.0,26298.0,0.51489567]
[1693507339751,0.15973639,26299.0,26298.0,1.75566567]
[1693507340001,0.05959339,26299.0,26298.0,1.72265333]
[1693507340200,0.05959339,26299.0,26298.0,1.71563333]
[1693507340422,0.05959339,26299.0,26298.0,2.81227222]
[1693507340619,0.05959339,26299.0,26298.0,2.82729222]
[1693507340823,0.05959339,26299.0,26298.0,2.82693222]
[1693507341049,0.05959339,26299.0,26298.0,2.81943222]
[1693507341291,0.05959339,26299.0,26298.0,2.81649222]
[1693507341489,0.06059339,26299.0,26298.0,2.82339222]
[1693507341700,0.06059339,26299.0,26298.0,1.69012222]
[1693507341877,0.06059339,26299.0,26298.0,1.62902222]
[1693507342122,0.06059339,26299.0,26298.0,1.56434222]
[1693507342346,0.06059339,26299.0,26298.0,1.67066222]
[1693507342528,0.06059339,26299.0,26298.0,1.65626222]
[1693507342792,0.06259339,26299.0,26298.0,1.65416222]
[1693507343012,0.06259339,26299.0,26298.0,1.65548222]
[1693507343226,0.06259339,26299.0,26298.0,5.25062056]
[1693507343439,0.06259339,26299.0,26298.0,3.95989722]
[1693507343662,0.06259339,26299.0,26298.0,5.17438122]
[1693507343863,0.06259339,26299.0,26298.0,5.16066122]
[1693507344067,0.06059339,26299.0,26298.0,5.16894122]
[1693507344276,0.004,26299.0,26298.0,5.17286122]
[1693507344509,0.004,26299.0,26298.0,5.30810122]
[1693507344763,0.008,26299.0,26298.0,5.92626748]
[1693507344983,0.004,26299.0,26298.0,6.63714648]
[1693507345164,0.008,26299.0,26298.0,6.63386648]
[1693507345401,0.008,26299.0,26298.0,6.63578648]
[1693507345610,0.008,26299.0,26298.0,6.63098648]
[1693507345816,0.008,26299.0,26298.0,6.40081022]
[1693507345817,0.004,26299.0,26298.0,6.40081022]
[1693507346017,0.004,26299.0,26298.0,6.40417022]
[1693507346218,0.008,26299.0,26298.0,6.53973622]
[1693507346419,0.008,26299.0,26298.0,6.54357622]
[1693507346603,0.004,26299.0,26298.0,6.60523958]
[1693507346811,0.004,26299.0,26298.0,6.60535958]
[1693507346963,0.008,26299.0,26298.0,6.61455958]
[1693507347164,0.008,26299.0,26298.0,6.61443958]
[1693507347365,0.008,26299.0,26298.0,6.62403958]
[1693507347563,0.008,26299.0,26298.0,6.62235958]
[1693507347788,0.008,26299.0,26298.0,6.62223958]
[1693507347988,0.008,26299.0,26298.0,6.62211958]
[1693507348191,0.008,26299.0,26298.0,6.12948558]
[1693507348419,0.008,26299.0,26298.0,5.05018958]
[1693507348616,0.008,26299.0,26298.0,3.98754058]
[1693507348821,0.008,26299.0,26298.0,3.99156058]
[1693507349168,0.008,26299.0,26298.0,4.12548058]
[1693507349389,0.008,26299.0,26298.0,4.08452058]
[1693507349567,0.008,26299.0,26298.0,2.60527058]
[1693507349742,0.008,26299.0,26298.0,2.60479058]
[1693507349948,0.008,26299.0,26298.0,2.03686558]
[1693507350162,0.008,26299.0,26298.0,2.03890558]
[1693507350362,0.008,26299.0,26298.0,2.04400558]
[1693507350563,0.008,26299.0,26298.0,2.04352558]
[1693507350717,0.008,26299.0,26298.0,2.04372797]
[1693507350922,0.008,26299.0,26298.0,2.04318797]
[1693507351166,0.008,26299.0,26298.0,2.04114797]
[1693507351387,0.008,26299.0,26298.0,2.04072797]
[1693507351592,0.008,26299.0,26298.0,1.17408712]
[1693507351799,0.008,26299.0,26298.0,1.25408712]
[1693507352613,0.004,26299.0,26298.0,1.24908712]
[1693507352816,0.004,26299.0,26298.0,1.31916712]
[1693507353039,0.008,26299.0,26298.0,1.33454712]
[1693507353248,0.008,26299.0,26298.0,1.32998712]
[1693507353453,0.004,26299.0,26298.0,1.70408097]
[1693507353669,0.008,26299.0,26298.0,3.47923597]
[1693507353872,0.008,26299.0,26298.0,3.46279597]
[1693507354085,0.004,26299.0,26298.0,3.46313597]
[1693507354313,0.008,26299.0,26298.0,3.46225597]
[1693507354542,0.008,26299.0,26298.0,3.46213597]
[1693507354749,0.008,26299.0,26298.0,3.45751597]
[1693507354946,0.008,26299.0,26298.0,3.46435597]
[1693507355164,0.008,26299.0,26298.0,3.46441597]
[1693507355373,0.008,26299.0,26298.0,3.46081597]
[1693507355592,0.008,26299.0,26298.0,2.88767097]
[1693507355802,0.008,26299.0,26298.0,2.88773097]
[1693507356005,0.008,26299.0,26298.0,2.88623097]
[1693507356212,0.008,26299.0,26298.0,1.36709097]
[1693507356384,0.008,26299.0,26298.0,1.41528969]
[1693507356588,0.008,26299.0,26298.0,1.41690969]
[1693507356799,0.008,26299.0,26298.0,0.83728469]
[1693507356951,0.008,26299.0,26298.0,0.83398469]
[1693507357155,0.008,26299.0,26298.0,0.83584469]
[1693507357358,0.008,26299.0,26298.0,0.83782469]
[1693507357558,0.008,26299.0,26298.0,0.85186469]
[1693507357764,0.008,26299.0,26298.0,0.85282469]
[1693507358138,0.008,26299.0,26298.0,0.85288469]
[1693507358356,0.008,26299.0,26298.0,1.42332969]
[1693507358581,0.008,26299.0,26298.0,1.42380969]
[1693507358786,0.008,26299.0,26298.0,1.42314969]
[1693507359003,0.008,26299.0,26298.0,1.42302969]
[1693507359209,0.008,26299.0,26298.0,1.42206969]
[1693507359394,0.008,26299.0,26298.0,1.42572969]
[1693507359545,0.008,26299.0,26298.0,1.42638969]
[1693507359751,0.008,26299.0,26298.0,1.42626969]
[1693507359947,0.008,26299.0,26298.0,0.84562469]
[1693507360152,0.008,26299.0,26298.0,0.83866469]
[1693507360351,0.008,26299.0,26298.0,0.83650469]
[1693507360601,0.008,26299.0,26298.0,0.83944469]
[1693507360773,0.008,26299.0,26298.0,0.84100469]
[1693507360979,0.008,26299.0,26298.0,0.83578469]
[1693507361179,0.008,26299.0,26298.0,0.83542469]
[1693507361396,0.008,26299.0,26298.0,0.26209969]
[1693507361622,0.008,26299.0,26298.0,0.26401969]
[1693507361828,0.008,26299.0,26298.0,0.26431969]
[1693507362002,0.008,26299.0,26298.0,0.24701969]
[1693507362326,0.008,26299.0,26298.0,0.25217969]
[1693507362541,0.008,26299.0,26298.0,0.82364469]
[1693507362742,0.008,26299.0,26298.0,0.82328469]
[1693507362945,0.008,26299.0,26298.0,0.82370469]
[1693507363148,0.008,26299.0,26298.0,0.82622469]
[1693507363284,0.008,26299.0,26298.0,0.82718469]
[1693507363483,0.008,26299.0,26298.0,0.82988469]
[1693507363682,0.008,26299.0,26298.0,0.83000469]
[1693507363943,0.008,26299.0,26298.0,0.83006469]
[1693507364117,0.008,26299.0,26298.0,0.83042469]
[1693507364318,0.008,26299.0,26298.0,0.82952469]
[1693507364543,0.008,26299.0,26298.0,0.83054469]
[1693507364778,0.008,26299.0,26298.0,1.57140969]
[1693507364945,0.008,26299.0,26298.0,1.59500969]
[1693507365186,0.008,26299.0,26298.0,1.59188969]
[1693507365366,0.008,26299.0,26298.0,2.16305469]
[1693507365564,0.008,26299.0,26298.0,2.16347469]
[1693507365794,0.008,26299.0,26298.0,2.16305469]
[1693507365969,0.008,26299.0,26298.0,2.16461469]
[1693507366120,0.008,26299.0,26298.0,2.16401469]
[1693507366320,0.008,26299.0,26298.0,2.16509469]
[1693507366530,0.008,26299.0,26298.0,2.16635469]
[1693507366756,0.008,26299.0,26298.0,2.16737469]
[1693507366950,0.008,26299.0,26298.0,2.16671469]
[1693507367152,0.008,26299.0,26298.0,2.16557469]
[1693507367352,0.008,26299.0,26298.0,2.12793469]
[1693507367707,0.008,26299.0,26298.0,2.12781469]
[1693507367907,0.008,26299.0,26298.0,2.12859469]
[1693507368084,0.008,26299.0,26298.0,2.12757469]
[1693507368219,0.008,26299.0,26298.0,2.12505469]
[1693507368424,0.008,26299.0,26298.0,0.97660469]
[1693507368652,0.008,26299.0,26298.0,0.81776372]
[1693507368873,0.008,26299.0,26298.0,0.05519872]
[1693507368874,0.24900918,26299.0,26298.0,0.05519872]
[1693507369075,0.24900918,26299.0,26298.0,0.12059872]
[1693507369276,0.24900918,26299.0,26298.0,0.12221872]
[1693507369709,0.008,26299.0,26298.0,0.80774372]
[1693507369896,0.008,26299.0,26298.0,0.82982372]
[1693507370104,0.008,26299.0,26298.0,0.83306372]
[1693507370394,0.008,26299.0,26298.0,1.77742957]
[1693507370597,0.25410267,26299.0,26298.0,0.05519872]
[1693507370805,1.47482867,26299.0,26298.0,0.05519872]
[1693507371641,1.46682867,26299.0,26298.0,0.04819872]
[1693507371841,1.47182867,26299.0,26298.0,0.05419872]
[1693507372600,1.46882867,26299.0,26298.0,0.05019872]
[1693507373000,0.89846567,26299.0,26298.0,0.05019872]
[1693507373422,0.89846567,26299.0,26298.0,0.04819872]
[1693507373629,0.89646567,26299.0,26298.0,0.04819872]
[1693507373826,0.32810267,26299.0,26298.0,0.05019872]
[1693507374078,0.082,26299.0,26298.0,0.002]
[1693507374282,0.082,26299.0,26298.0,0.05018574]
[1693507374479,0.2462,26299.0,26298.0,0.05418574]
[1693507377191,0.816563,26299.0,26298.0,0.05418574]
[1693507378011,0.2462,26299.0,26298.0,0.05418574]
[1693507378412,0.2462,26299.0,26298.0,0.62457074]
[1693507378815,0.2462,26299.0,26298.0,0.05418574]
[1693507380372,0.2462,26299.0,26298.0,0.74037074]
[1693507380579,0.2462,26299.0,26298.0,1.39313574]
[1693507380819,0.2462,26299.0,26298.0,1.39247574]
[1693507381114,0.2462,26299.0,26298.0,1.39229574]
[1693507381315,0.2462,26299.0,26298.0,1.39181574]
[1693507381516,0.2462,26299.0,26298.0,1.39187574]
[1693507381739,0.2462,26299.0,26298.0,0.82005074]
[1693507381938,0.2462,26299.0,26298.0,0.82023074]
[1693507382142,0.2462,26299.0,26298.0,0.81903074]
[1693507382349,0.2462,26299.0,26298.0,0.81879074]
[1693507382550,0.2462,26299.0,26298.0,0.81939074]
[1693507382757,0.2462,26299.0,26298.0,0.80517074]
[1693507382957,0.2462,26299.0,26298.0,0.74037074]
[1693507383554,0.2462,26299.0,26298.0,0.16998574]
[1693507384087,0.2462,26299.0,26298.0,0.05418574]
[1693507384556,1.0541114,26299.0,26298.0,0.05418574]
[1693507386269,1.0741114,26299.0,26298.0,0.05418574]
[1693507386680,1.6444744,26299.0,26298.0,0.05418574]
[1693507389365,1.0741114,26299.0,26298.0,0.05418574]
[1693507389616,0.2662,26299.0,26298.0,0.05418574]
[1693507391840,1.06778902,26299.0,26298.0,0.05418574]
[1693507392461,1.32591726,26299.0,26298.0,0.05418574]
[1693507392660,2.83639342,26299.0,26298.0,0.05418574]
[1693507392943,2.65435406,26299.0,26298.0,0.006]
[1693507393345,3.02203491,26299.0,26298.0,0.006]
[1693507394014,3.44203491,26299.0,26298.0,0.006]
[1693507394156,0.5387,26296.0,26295.0,0.011105]
[1693507394363,3.87261253,26296.0,26295.0,0.011105]
[1693507394563,4.61873783,26296.0,26295.0,5e-06]
[1693507394775,4.39145085,26296.0,26295.0,5e-06]
[1693507395094,4.37645085,26296.0,26295.0,5e-06]
[1693507395297,4.5765752,26296.0,26295.0,5e-06]
[1693507395510,0.6037,26293.0,26292.0,0.1]
[1693507395711,0.6037,26293.0,26289.0,0.020402]
[1693507395712,0.145,26291.0,26289.0,0.020402]
[1693507395919,1.99663981,26291.0,26289.0,0.020402]
[1693507396322,0.3208,26288.0,26287.0,0.020402]
[1693507396533,1.92050656,26288.0,26287.0,0.015402]
[1693507396738,3.19985381,26288.0,26287.0,0.015402]
[1693507396908,3.56764285,26288.0,26287.0,0.015402]
[1693507397311,3.08405381,26288.0,26287.0,0.015402]
[1693507397519,3.12005381,26288.0,26287.0,0.015402]
[1693507397724,3.15605381,26288.0,26287.0,0.015402]
[1693507397929,0.132,26288.0,26287.0,0.015402]
[1693507398135,0.132,26288.0,26287.0,1.15665]
[1693507398339,0.132,26288.0,26287.0,0.015402]
[1693507398548,0.132,26288.0,26287.0,0.060843]
[1693507399385,0.096,26288.0,26287.0,0.060843]
[1693507399591,0.06,26288.0,26287.0,0.060843]
[1693507399799,0.06,26288.0,26287.0,0.075843]
[1693507400005,0.036,26288.0,26287.0,1.478731]
[1693507400216,0.02,26288.0,26287.0,1.479271]
[1693507400478,0.056,26288.0,26287.0,1.474031]
[1693507400679,0.092,26288.0,26287.0,1.474871]
[1693507400892,0.31757994,26288.0,26287.0,0.060843]
[1693507401099,0.626602,26288.0,26287.0,0.075843]
[1693507401300,2.19695088,26288.0,26287.0,0.061843]
[1693507401717,2.20995088,26288.0,26287.0,0.061843]
[1693507401930,2.20995088,26288.0,26287.0,0.016402]
[1693507402332,2.11713389,26288.0,26287.0,0.05977268]
[1693507403315,1.800806,26288.0,26287.0,0.05977268]
[1693507403466,2.10131369,26288.0,26287.0,0.05977268]
[1693507404287,1.53071169,26288.0,26287.0,0.05977268]
[1693507405240,1.59788485,26288.0,26287.0,0.05977268]
[1693507405485,2.40390434,26288.0,26287.0,0.05977268]
[1693507405890,2.40390434,26288.0,26287.0,0.016402]
[1693507406497,2.63241145,26288.0,26287.0,0.016402]
[1693507406701,2.40390434,26288.0,26287.0,0.016402]
[1693507406908,2.69430786,26288.0,26287.0,0.016402]
[1693507407323,2.54890434,26288.0,26287.0,0.016402]
[1693507407737,2.53590434,26288.0,26287.0,0.016402]
[1693507407942,2.53590434,26288.0,26281.0,0.0021035]
[1693507407943,0.145,26282.0,26281.0,0.0021035]
[1693507408173,2.87610885,26282.0,26281.0,0.0021035]
[1693507408387,3.44684085,26282.0,26281.0,0.0021035]
[1693507408604,1.201464,26282.0,26281.0,0.0021035]
[1693507408818,0.02,26283.0,26282.0,0.015]
[1693507409046,0.02,26283.0,26282.0,0.585732]
[1693507409252,0.06,26291.0,26290.0,0.015]
[1693507409470,0.06,26291.0,26290.0,0.16207234]
[1693507409905,1.43034538,26291.0,26290.0,0.015]
[1693507410120,1.63043272,26291.0,26290.0,0.05729788]
[1693507410332,0.06,26291.0,26290.0,0.20437022]
[1693507410559,0.096,26291.0,26290.0,0.05729788]
[1693507410766,0.096,26291.0,26290.0,0.73285688]
[1693507410992,0.096,26291.0,26290.0,0.74437688]
[1693507411198,0.132,26291.0,26290.0,0.74119688]
[1693507411406,0.132,26291.0,26290.0,1.12659773]
[1693507411612,0.132,26291.0,26290.0,0.12575788]
[1693507411860,0.096,26291.0,26290.0,0.12491788]
[1693507412071,0.132,26291.0,26290.0,0.12471399]
[1693507412278,0.132,26291.0,26290.0,0.05763399]
[1693507412477,0.06,26291.0,26290.0,0.05763399]
[1693507412624,0.089,26291.0,26290.0,0.05763399]
[1693507412846,0.115,26291.0,26290.0,0.12693399]
[1693507413021,0.115,26291.0,26290.0,0.05763399]
[1693507413225,0.36340231,26291.0,26290.0,0.10695399]
[1693507413422,1.50447631,26291.0,26290.0,0.05763399]
[1693507413616,2.28251394,26291.0,26290.0,0.05763399]
[1693507413824,1.826611,26291.0,26290.0,0.05763399]
[1693507414033,1.826611,26291.0,26290.0,0.04263399]
[1693507414230,2.13873369,26291.0,26290.0,0.04263399]
[1693507414717,2.13873369,26291.0,26290.0,0.00033611]
[1693507414933,2.13873369,26291.0,26290.0,0.04253312]
[1693507415136,2.40161006,26291.0,26290.0,0.04219701]
[1693507415367,2.11273369,26291.0,26290.0,0.04219701]
[1693507415575,0.97865969,26291.0,26290.0,0.04219701]
[1693507415781,0.06,26290.0,26289.0,0.06648]
[1693507415983,0.06,26290.0,26289.0,0.07242]
[1693507416183,0.06,26290.0,26289.0,0.06558]
[1693507416423,0.06,26290.0,26289.0,0.06528]
[1693507416606,0.06,26290.0,26289.0,0.0687]
[1693507416815,0.088,26290.0,26289.0,0.06828]
[1693507417023,0.088,26290.0,26289.0,0.06804]
[1693507417234,0.088,26290.0,26289.0,1.61584085]
[1693507417443,0.028,26290.0,26289.0,2.23268085]
[1693507417655,0.088,26290.0,26289.0,2.22560085]
[1693507417861,0.088,26290.0,26289.0,1.65238085]
[1693507418066,0.114,26290.0,26289.0,1.65220085]
[1693507418307,0.114,26290.0,26289.0,1.65166085]
[1693507418519,0.114,26290.0,26289.0,1.04934085]
[1693507418756,0.114,26290.0,26289.0,0.46976085]
[1693507418970,0.114,26290.0,26289.0,0.40268085]
[1693507419179,0.114,26290.0,26289.0,0.015]
[1693507421507,0.114,26290.0,26289.0,0.05532726]
[1693507422896,0.4194412,26290.0,26289.0,0.05532726]
[1693507423123,1.5605592,26290.0,26289.0,0.05532726]
[1693507423546,0.114,26290.0,26289.0,0.05532726]
[1693507424565,0.37701233,26290.0,26289.0,0.05532726]
[1693507424927,0.94757133,26290.0,26289.0,0.05532726]
[1693507425555,0.054,26290.0,26289.0,2.45632045]
[1693507425768,0.02,26293.0,26292.0,0.015]
[1693507425967,1.05903172,26301.0,26296.0,0.015]
[1693507425968,0.06,26297.0,26296.0,0.015]
[1693507426233,0.06,26297.0,26296.0,0.16207234]
[1693507426234,0.24231484,26297.0,26296.0,0.16207234]
[1693507426438,0.06,26296.0,26295.0,0.015]
[1693507426659,0.24231484,26296.0,26295.0,0.015]
[1693507426829,0.81274284,26296.0,26295.0,0.015]
[1693507427035,0.81274284,26296.0,26294.0,0.015]
[1693507427233,0.81274284,26296.0,26292.0,0.005]
[1693507427234,0.06,26293.0,26292.0,0.005]
[1693507427435,1.38323253,26293.0,26292.0,0.003]
[1693507427685,1.95372653,26293.0,26292.0,0.003]
[1693507427914,2.20546995,26293.0,26292.0,0.003]
[1693507428132,0.02,26287.0,26286.0,0.015]
[1693507428725,0.02,26287.0,26286.0,0.05173647]
[1693507428877,0.02,26287.0,26286.0,0.015]
[1693507429078,0.02,26287.0,26286.0,0.01539865]
[1693507429308,0.02,26287.0,26286.0,0.08235865]
[1693507429508,0.02,26287.0,26286.0,0.08211865]
[1693507429712,0.024,26287.0,26286.0,0.09163865]
[1693507429909,0.024,26287.0,26286.0,0.67314365]
[1693507430243,0.024,26287.0,26286.0,0.67080365]
[1693507430465,0.024,26287.0,26286.0,0.66930365]
[1693507430667,0.024,26287.0,26286.0,0.66912365]
[1693507430959,0.024,26287.0,26286.0,0.66828365]
[1693507431159,0.024,26287.0,26286.0,0.66786365]
[1693507431377,0.024,26287.0,26286.0,1.0360845]
[1693507431586,0.024,26287.0,26286.0,2.2366745]
[1693507431587,0.004,26287.0,26286.0,2.2366745]
[1693507431792,0.008,26287.0,26286.0,2.3962945]
[1693507431999,0.008,26287.0,26286.0,2.4211345]
[1693507432201,0.008,26287.0,26286.0,2.7720545]
[1693507432380,0.008,26287.0,26286.0,2.7641345]
[1693507432588,0.008,26287.0,26286.0,2.7727745]
[1693507432802,0.008,26287.0,26286.0,2.8348145]
[1693507433011,0.008,26287.0,26286.0,2.8478945]
[1693507433143,0.008,26287.0,26286.0,2.8474145]
[1693507433353,0.008,26287.0,26286.0,3.2486345]
[1693507433575,0.008,26287.0,26286.0,3.2432345]
[1693507433793,0.008,26287.0,26286.0,3.2444345]
[1693507434121,0.008,26287.0,26286.0,3.2443145]